fUST/lending_fUST_20240901
["ID","MTS","AMOUNT","RATE_DAILY","PERIOD"]
[336769289,1725127845262,-500.0,0.00032876,31]
[336769290,1725127845271,-1027.08,0.00032876,31]
[336769291,1725127845282,-3197.64,0.00032876,31]
[336769292,1725127845293,-500.0,0.00032876,31]
[336769293,1725127845303,-674.64,0.00032876,31]
[336769294,1725127845312,-500.0,0.00032876,31]
[336769295,1725127845321,-500.0,0.00032876,31]
[336769296,1725127845330,-500.0,0.00032876,31]
[336769297,1725127845339,-946.87,0.00032876,31]
[336769298,1725127845349,-901.25,0.00032876,31]
[336769299,1725127845358,-500.0,0.00032876,31]
[336769300,1725127845367,-500.0,0.00032876,31]
[336769301,1725127845377,-500.83879302,0.00032876,31]
[336769302,1725127845386,-1076.19,0.00032876,31]
[336769303,1725127845396,-500.0,0.00032876,31]
[336769304,1725127845405,-299.91396957,0.00032876,31]
[336769305,1725127845414,-500.0,0.00032876,31]
[336769306,1725127845424,-3623.17,0.00032876,31]
[336769307,1725127845433,-500.0,0.00032876,31]
[336769308,1725127845442,-500.0,0.00032876,31]
[336769309,1725127845451,-600.45,0.00032876,31]
[336769310,1725127845460,-500.0,0.00032876,31]
[336769311,1725127845469,-748.89,0.00032876,31]
[336769312,1725127845479,-5541.37,0.00032876,31]
[336769313,1725127845488,-963.81,0.00032876,31]
[336769314,1725127845498,-500.0,0.00032876,31]
[336769315,1725127845507,-1154.51,0.00032876,31]
[336769316,1725127845516,-1099.36,0.00032876,31]
[336769317,1725127845525,-500.0,0.00032876,31]
[336769318,1725127845535,-500.0,0.00032876,31]
[336769319,1725127845544,-1959.08,0.00032876,31]
[336769320,1725127845553,-537.83872721,0.00032876,31]
[336769321,1725127845562,-500.0,0.00032876,31]
[336769322,1725127845571,-500.0,0.00032876,31]
[336769323,1725127845581,-500.0,0.00032876,31]
[336769324,1725127845590,-500.0,0.00032876,31]
[336769325,1725127845600,-500.0,0.00032876,31]
[336769326,1725127845609,-500.0,0.00032876,31]
[336769327,1725127845618,-1661.7,0.00032876,31]
[336769328,1725127845629,-1093.8,0.00032876,31]
[336769329,1725127845638,-1810.66,0.00032876,31]
[336769330,1725127845647,-500.0,0.00032876,31]
[336769331,1725127845656,-4423.81,0.00032876,31]
[336769332,1725127845667,-512.94,0.00032876,31]
[336769333,1725127845677,-500.0,0.00032876,31]
[336769334,1725127845687,-500.0,0.00032876,31]
[336769335,1725127845696,-624.79,0.00032876,31]
[336769336,1725127845705,-2877.06,0.00032876,31]
[336769337,1725127845715,-500.0,0.00032876,31]
[336769338,1725127845725,-3249.29,0.00032876,31]
[336769339,1725127845736,-500.0,0.00032876,31]
[336769340,1725127845746,-500.0,0.00032876,31]
[336769341,1725127845755,-500.0,0.00032876,31]
[336769342,1725127845765,-500.0,0.00032876,31]
[336769343,1725127845774,-500.0,0.00032876,31]
[336769344,1725127845783,-857.05,0.00032876,31]
[336769345,1725127845793,-500.0,0.00032876,31]
[336769346,1725127845803,-973.51,0.00032876,31]
[336769347,1725127845812,-500.0,0.00032876,31]
[336769348,1725127845821,-500.0,0.00032876,31]
[336769349,1725127845830,-736.65,0.00032876,31]
[336769350,1725127845842,-1063.27,0.00032876,31]
[336769351,1725127845854,-500.0,0.00032876,31]
[336769352,1725127845864,-500.0,0.00032876,31]
[336769353,1725127845874,-500.0,0.00032876,31]
[336769354,1725127845884,-3993.33,0.00032876,31]
[336769355,1725127845894,-500.0,0.00032876,31]
[336769356,1725127845903,-500.0,0.00032876,31]
[336769357,1725127845912,-693.84,0.00032876,31]
[336769358,1725127846008,-500.0,0.00032876,31]
[336769359,1725127846018,-519.9,0.00032876,31]
[336769360,1725127846027,-500.0,0.00032876,31]
[336769361,1725127846037,-1630.74,0.00032876,31]
[336769362,1725127846046,-500.0,0.00032876,31]
[336769363,1725127846055,-500.0,0.00032876,31]
[336769364,1725127846066,-1088.81,0.00032876,31]
[336769365,1725127846075,-500.0,0.00032876,31]
[336769366,1725127846084,-2374.57,0.00032876,31]
[336769367,1725127846095,-500.0,0.00032876,31]
[336769368,1725127846105,-500.0,0.00032876,31]
[336769369,1725127846115,-2090.83,0.00032876,31]
[336769370,1725127846126,-500.0,0.00032876,31]
[336769371,1725127846137,-500.0,0.00032876,31]
[336769372,1725127846147,-500.0,0.00032876,31]
[336769373,1725127846159,-500.0,0.00032876,31]
[336769374,1725127846169,-302.57875429,0.00032876,31]
[336769375,1725127846179,-500.0,0.00032876,31]
[336769376,1725127846188,-500.0,0.00032876,31]
[336769377,1725127846198,-500.0,0.00032876,31]
[336769378,1725127846207,-794.05,0.00032876,31]
[336769379,1725127846216,-500.0,0.00032876,31]
[336769380,1725127846225,-584.67,0.00032876,31]
[336769381,1725127846235,-500.0,0.00032876,31]
[336769382,1725127846248,-1542.25,0.00032876,31]
[336769383,1725127846258,-673.75,0.00032876,31]
[336769384,1725127846268,-877.85,0.00032876,31]
[336769385,1725127846277,-32292.39,0.00032876,8]
[336769386,1725127846290,-696.87,0.00032876,31]
[336769387,1725127846300,-500.0,0.00032876,31]
[336769388,1725127846309,-500.0,0.00032876,31]
[336769389,1725127846318,-525.86,0.00032876,31]
[336769390,1725127846328,-500.0,0.00032876,31]
[336769391,1725127846337,-5122.17,0.00032876,31]
[336769392,1725127846347,-1218.73,0.00032876,31]
[336769393,1725127846358,-560.1,0.00032876,31]
[336769394,1725127846368,-1852.84,0.00032876,21]
[336769395,1725127846379,-500.0,0.00032876,31]
[336769396,1725127846390,-500.0,0.00032876,31]
[336769397,1725127846400,-500.0,0.00032876,31]
[336769398,1725127846409,-500.0,0.00032876,31]
[336769399,1725127846418,-500.0,0.00032876,31]
[336769400,1725127846427,-500.0,0.00032876,31]
[336769401,1725127846436,-5583.49,0.00032876,31]
[336769402,1725127846445,-500.0,0.00032876,31]
[336769403,1725127846454,-500.0,0.00032876,31]
[336769405,1725127846463,-500.0,0.00032876,31]
[336769406,1725127846473,-500.0,0.00032876,31]
[336769407,1725127846482,-500.0,0.00032876,31]
[336769409,1725127846491,-500.0,0.00032876,31]
[336769411,1725127846501,-937.48,0.00032876,31]
[336769412,1725127846510,-510.97342838,0.00032876,31]
[336769413,1725127846519,-2229.91,0.00032876,31]
[336769414,1725127846529,-1052.22,0.00032876,31]
[336769415,1725127846538,-1894.36,0.00032876,31]
[336769416,1725127846548,-4163.32,0.00032876,31]
[336769417,1725127846558,-500.0,0.00032876,31]
[336769418,1725127846567,-500.0,0.00032876,31]
[336769419,1725127846576,-500.0,0.00032876,31]
[336769420,1725127846586,-500.0,0.00032876,31]
[336769421,1725127846595,-500.0,0.00032876,31]
[336769422,1725127846605,-500.0,0.00032876,31]
[336769423,1725127846615,-1272.24,0.00032876,7]
[336769425,1725127846629,-641.77,0.00032876,31]
[336769427,1725127846639,-500.0,0.00032876,31]
[336769428,1725127846649,-500.0,0.00032876,31]
[336769429,1725127846659,-500.0,0.00032876,31]
[336769430,1725127846669,-500.0,0.00032876,31]
[336769431,1725127846678,-500.0,0.00032876,31]
[336769432,1725127846689,-818.03,0.00032876,31]
[336769433,1725127846699,-500.0,0.00032876,2]
[336769434,1725127846710,-500.0,0.00032876,31]
[336769435,1725127846721,-500.0,0.00032876,31]
[336769436,1725127846731,-688.18,0.00032876,31]
[336769437,1725127846742,-5890.08,0.00032876,31]
[336769438,1725127846751,-6033.44,0.00032876,31]
[336769439,1725127846763,-1393.33,0.00032876,31]
[336769440,1725127846773,-1823.08,0.00032876,31]
[336769441,1725127846783,-500.0,0.00032876,31]
[336769442,1725127846792,-590.94,0.00032876,31]
[336769443,1725127846802,-956.75,0.00032876,31]
[336769444,1725127846812,-501.91770301,0.00032876,31]
[336769445,1725127846822,-10002.3,0.00032876,31]
[336769446,1725127846831,-1872.64,0.00032876,31]
[336769447,1725127846840,-1039.43,0.00032876,31]
[336769448,1725127846850,-150.0,0.00032902,2]
[336769449,1725127846860,-522.0,0.00032902,2]
[336769450,1725127846870,-151.0,0.00032992,7]
[336769451,1725127846879,-184.25,0.00033,6]
[336769452,1725127846889,-159.63,0.00033,31]
[336769453,1725127846898,-488.03487699,0.00033,2]
[336769454,1725127846908,-500.0,0.00033023,7]
[336769455,1725127846918,-970.96498844,0.00033026,2]
[336769456,1725127846929,-415.15135755,0.0003304,2]
[336769457,1725127846940,-153.0,0.00033041,2]
[336769458,1725127846951,-153.0,0.00033041,2]
[336769459,1725127846961,-153.0,0.00033041,2]
[336769460,1725127846972,-500.0,0.00033048,31]
[336769461,1725127846983,-500.0,0.00033049,31]
[336769462,1725127846994,-500.0,0.00033049,31]
[336769463,1725127847004,-500.0,0.00033049,31]
[336769464,1725127847014,-500.0,0.00033049,31]
[336769465,1725127847026,-529.68,0.00033049,31]
[336769466,1725127847036,-151.0,0.00033049,14]
[336769467,1725127847046,-500.0,0.00033049,31]
[336769468,1725127847056,-945.11,0.00033049,31]
[336769469,1725127847067,-151.0,0.0003305,14]
[336769470,1725127847077,-151.0,0.0003305,14]
[336769471,1725127847090,-151.0,0.0003305,14]
[336769472,1725127847101,-151.0,0.0003305,14]
[336769473,1725127847113,-151.0,0.0003305,14]
[336769474,1725127847123,-151.0,0.0003305,14]
[336769475,1725127847134,-151.0,0.0003305,14]
[336769476,1725127847144,-151.0,0.0003305,14]
[336769477,1725127847155,-151.0,0.0003305,14]
[336769478,1725127847165,-151.0,0.0003305,14]
[336769479,1725127847175,-172.100541,0.0003305,14]
[336769480,1725127847184,-265.825989,0.0003305,14]
[336769481,1725127847194,-265.825989,0.0003305,14]
[336769482,1725127847203,-151.0,0.0003305,14]
[336769483,1725127847213,-151.0,0.0003305,14]
[336769484,1725127847222,-151.0,0.0003305,14]
[336769485,1725127847231,-151.0,0.0003305,14]
[336769486,1725127847241,-151.0,0.0003305,14]
[336769487,1725127847250,-169.192923,0.0003305,14]
[336769488,1725127847260,-169.192923,0.0003305,14]
[336769489,1725127847269,-151.0,0.0003305,14]
[336769490,1725127847279,-1054.857452,0.00033097,14]
[336769491,1725127847293,-1054.857452,0.00033097,14]
[336769492,1725127847303,-151.0,0.00033097,14]
[336769493,1725127847312,-151.0,0.00033097,14]
[336769494,1725127847321,-1000.0,0.00033124,2]
[336769495,1725127847330,-3306.8070672,0.0003313,4]
[336769496,1725127847340,-415.15135749,0.00033136,2]
[336769497,1725127847349,-500.0,0.00033139,31]
[336769498,1725127847359,-234.0552585,0.00033139,31]
[336769499,1725127847369,-57722.5542534,0.0003314,5]
[336769500,1725127847379,-151.0,0.0003314,14]
[336769501,1725127847388,-151.0,0.0003314,14]
[336769502,1725127847397,-151.0,0.0003314,14]
[336769503,1725127847407,-151.0,0.0003314,14]
[336769504,1725127847417,-151.0,0.0003314,14]
[336769505,1725127847427,-151.0,0.0003314,14]
[336769506,1725127847436,-11573.8247352,0.0003314,4]
[336769507,1725127847446,-709.24207654,0.0003315,30]
[336769508,1725127847456,-151.0,0.0003315,14]
[336769509,1725127847465,-500.0,0.0003315,31]
[336769510,1725127847474,-500.0,0.0003315,31]
[336769511,1725127847483,-600.03,0.0003315,31]
[336769512,1725127847494,-500.0,0.0003315,31]
[336769513,1725127847503,-151.0,0.0003315,14]
[336769514,1725127847513,-500.0,0.0003315,31]
[336769515,1725127847523,-500.0,0.0003315,31]
[336769516,1725127847532,-500.0,0.0003315,31]
[336769517,1725127847541,-1632.03,0.0003315,31]
[336769518,1725127847551,-500.0,0.0003315,31]
[336769519,1725127847560,-179.72202861,0.0003315,2]
[336769520,1725127847569,-520.96,0.0003315,31]
[336769521,1725127847579,-500.0,0.0003315,31]
[336769522,1725127847589,-500.0,0.0003315,31]
[336769523,1725127847599,-500.0,0.0003315,31]
[336769524,1725127847608,-500.0,0.0003315,31]
[336769525,1725127847618,-737.34,0.0003315,31]
[336769526,1725127847627,-574.53,0.0003315,31]
[336769527,1725127847637,-500.0,0.0003315,31]
[336769528,1725127847649,-500.0,0.0003315,31]
[336769529,1725127847659,-500.0,0.0003315,31]
[336769530,1725127847669,-500.0,0.0003315,31]
[336769531,1725127847679,-505.95243643,0.0003315,31]
[336769532,1725127847689,-257.58766823,0.0003315,31]
[336769533,1725127847700,-151.0,0.0003315,14]
[336769534,1725127847712,-151.0,0.0003315,14]
[336769535,1725127847722,-500.0,0.0003315,31]
[336769536,1725127847732,-500.0,0.0003315,31]
[336769537,1725127847743,-500.0,0.0003315,31]
[336769538,1725127847754,-500.0,0.0003315,31]
[336769539,1725127847764,-500.0,0.0003315,31]
[336769540,1725127847773,-500.0,0.0003315,31]
[336769541,1725127847865,-640.72909634,0.0003315,31]
[336769542,1725127847875,-500.0,0.0003315,31]
[336769543,1725127847884,-500.0,0.0003315,31]
[336769544,1725127847894,-500.0,0.0003315,31]
[336769545,1725127847904,-500.0,0.0003315,31]
[336769546,1725127847913,-500.0,0.0003315,31]
[336769547,1725127847924,-500.0,0.0003315,31]
[336769548,1725127847933,-151.0,0.0003315,14]
[336769549,1725127847944,-151.0,0.0003315,14]
[336769550,1725127847954,-151.0,0.0003315,14]
[336769551,1725127847964,-555.68,0.0003315,31]
[336769552,1725127847973,-670.69,0.0003315,31]
[336769553,1725127847983,-500.0,0.0003315,31]
[336769554,1725127847992,-708.64,0.0003315,31]
[336769555,1725127848002,-500.0,0.0003315,31]
[336769556,1725127848011,-500.0,0.0003315,31]
[336769557,1725127848020,-500.0,0.0003315,31]
[336769558,1725127848030,-500.0,0.0003315,31]
[336769559,1725127848040,-500.0,0.0003315,31]
[336769560,1725127848050,-151.0,0.0003315,14]
[336769561,1725127848061,-936.18,0.0003315,31]
[336769562,1725127848071,-151.0,0.0003315,14]
[336769563,1725127848080,-683.35,0.0003315,31]
[336769564,1725127848090,-151.0,0.0003315,14]
[336769565,1725127848100,-636.79,0.0003315,31]
[336769566,1725127848110,-500.0,0.0003315,31]
[336769567,1725127848119,-500.0,0.0003315,31]
[336769568,1725127848129,-500.0,0.0003315,31]
[336769569,1725127848139,-544.54,0.0003315,31]
[336769570,1725127848148,-502.39452672,0.0003315,31]
[336769571,1725127848158,-500.0,0.0003315,31]
[336769572,1725127848168,-1697.22,0.0003315,31]
[336769573,1725127848177,-500.0,0.0003315,31]
[336769574,1725127848186,-500.0,0.0003315,31]
[336769575,1725127848197,-500.0,0.0003315,31]
[336769576,1725127848207,-500.0,0.0003315,31]
[336769577,1725127848216,-1139.68,0.0003315,31]
[336769578,1725127848226,-500.0,0.0003315,31]
[336769579,1725127848236,-926.62,0.0003315,31]
[336769580,1725127848246,-500.0,0.0003315,31]
[336769581,1725127848256,-500.0,0.0003315,31]
[336769582,1725127848266,-500.0,0.0003315,31]
[336769583,1725127848275,-500.0,0.0003315,31]
[336769584,1725127848288,-500.0,0.0003315,31]
[336769585,1725127848298,-612.37142682,0.0003315,31]
[336769586,1725127848308,-500.0,0.0003315,31]
[336769587,1725127848317,-500.0,0.0003315,31]
[336769588,1725127848327,-500.0,0.0003315,31]
[336769589,1725127848337,-500.0,0.0003315,31]
[336769590,1725127848346,-504.57400359,0.0003315,31]
[336769591,1725127848356,-516.12552987,0.0003315,31]
[336769592,1725127848368,-717.87,0.0003315,31]
[336769593,1725127848379,-151.0,0.0003315,14]
[336769594,1725127848389,-151.0,0.0003315,14]
[336769595,1725127848398,-151.0,0.0003315,14]
[336769596,1725127848407,-500.0,0.0003315,31]
[336769597,1725127848417,-500.0,0.0003315,31]
[336769598,1725127848427,-500.0,0.0003315,31]
[336769599,1725127848437,-887.55,0.0003315,30]
[336769600,1725127848447,-500.0,0.0003315,31]
[336769601,1725127848457,-500.0,0.0003315,31]
[336769602,1725127848468,-500.0,0.0003315,31]
[336769603,1725127848478,-500.0,0.0003315,31]
[336769604,1725127848488,-500.0,0.0003315,31]
[336769605,1725127848500,-500.0,0.0003315,31]
[336769606,1725127848510,-500.0,0.0003315,31]
[336769607,1725127848520,-500.0,0.0003315,31]
[336769608,1725127848529,-1499.32,0.0003315,31]
[336769609,1725127848538,-732.42,0.0003315,31]
[336769610,1725127848548,-151.0,0.0003315,14]
[336769611,1725127848558,-151.0,0.0003315,14]
[336769612,1725127848570,-151.0,0.0003315,14]
[336769613,1725127848579,-151.0,0.0003315,14]
[336769614,1725127848588,-151.0,0.0003315,14]
[336769615,1725127848598,-151.0,0.0003315,14]
[336769616,1725127848608,-500.0,0.0003315,31]
[336769617,1725127848619,-503.22755968,0.0003315,31]
[336769618,1725127848629,-500.0,0.0003315,31]
[336769619,1725127848639,-676.16,0.0003315,31]
[336769620,1725127848649,-500.0,0.0003315,31]
[336769621,1725127848659,-500.0,0.0003315,31]
[336769622,1725127848670,-151.0,0.0003315,14]
[336769623,1725127848680,-233.83942,0.0003315,14]
[336769624,1725127848689,-500.0,0.0003315,31]
[336769625,1725127848699,-500.0,0.0003315,31]
[336769626,1725127848710,-500.0,0.0003315,31]
[336769627,1725127848720,-500.0,0.0003315,31]
[336769628,1725127848730,-1006.24,0.0003315,31]
[336769629,1725127848740,-151.0,0.0003315,14]
[336769630,1725127848750,-151.0,0.0003315,14]
[336769631,1725127848759,-500.0,0.0003315,20]
[336769632,1725127848768,-151.0,0.0003315,14]
[336769633,1725127848777,-500.0,0.0003315,31]
[336769634,1725127848787,-500.0,0.0003315,31]
[336769635,1725127848797,-740.5,0.0003315,31]
[336769636,1725127848808,-883.9,0.0003315,31]
[336769637,1725127848818,-500.0,0.0003315,31]
[336769638,1725127848827,-500.0,0.0003315,31]
[336769639,1725127848837,-1020.33,0.0003315,31]
[336769640,1725127848846,-500.0,0.0003315,31]
[336769641,1725127848856,-500.0,0.0003315,15]
[336769642,1725127848867,-501.93581551,0.0003315,31]
[336769643,1725127848876,-553.04,0.0003315,31]
[336769644,1725127848886,-500.0,0.0003315,7]
[336769645,1725127848896,-363.4652974,0.0003315,31]
[336769646,1725127848906,-1054.857452,0.0003315,14]
[336769647,1725127848916,-1054.857452,0.0003315,14]
[336769648,1725127848925,-1054.857452,0.0003315,14]
[336769649,1725127848935,-500.0,0.0003315,31]
[336769650,1725127848944,-1054.857452,0.0003315,14]
[336769651,1725127848955,-500.0,0.0003315,31]
[336769652,1725127848964,-1054.857452,0.0003315,14]
[336769653,1725127848974,-940.46,0.0003315,31]
[336769654,1725127848985,-1054.857452,0.0003315,14]
[336769655,1725127848994,-500.0,0.0003315,31]
[336769656,1725127849004,-500.0,0.0003315,31]
[336769657,1725127849015,-500.0,0.0003315,31]
[336769658,1725127849025,-500.0,0.0003315,31]
[336769659,1725127849036,-500.0,0.0003315,31]
[336769660,1725127849046,-151.0,0.0003315,14]
[336769661,1725127849056,-151.0,0.0003315,14]
[336769662,1725127849066,-151.0,0.0003315,14]
[336769663,1725127849076,-989.2,0.0003315,31]
[336769664,1725127849085,-151.0,0.0003315,14]
[336769665,1725127849095,-500.0,0.0003315,31]
[336769666,1725127849105,-151.0,0.0003315,14]
[336769667,1725127849115,-151.0,0.0003315,14]
[336769668,1725127849125,-500.0,0.0003315,31]
[336769669,1725127849134,-500.0,0.0003315,31]
[336769670,1725127849144,-500.0,0.0003315,31]
[336769671,1725127849154,-766.9,0.0003315,31]
[336769672,1725127849163,-500.0,0.0003315,31]
[336769673,1725127849182,-500.0,0.0003315,31]
[336769674,1725127849193,-500.0,0.0003315,31]
[336769675,1725127849204,-1031.66,0.0003315,31]
[336769676,1725127849214,-500.0,0.0003315,31]
[336769677,1725127849224,-151.0,0.0003315,14]
[336769678,1725127849235,-500.0,0.0003315,31]
[336769679,1725127849247,-500.0,0.0003315,31]
[336769680,1725127849263,-500.0,0.0003315,31]
[336769681,1725127849273,-500.0,0.0003315,31]
[336769682,1725127849285,-995.67,0.0003315,31]
[336769683,1725127849296,-500.0,0.0003315,31]
[336769684,1725127849306,-500.0,0.0003315,31]
[336769685,1725127849318,-500.0,0.0003315,31]
[336769686,1725127849329,-500.0,0.0003315,31]
[336769687,1725127849339,-525.12,0.0003315,31]
[336769688,1725127849349,-500.0,0.0003315,31]
[336769689,1725127849360,-653.72,0.0003315,31]
[336769690,1725127849370,-500.0,0.0003315,31]
[336769691,1725127849381,-151.0,0.0003315,14]
[336769692,1725127849391,-500.0,0.0003315,31]
[336769693,1725127849400,-206.13684,0.0003315,14]
[336769694,1725127849410,-500.0,0.0003315,31]
[336769695,1725127849420,-500.0,0.0003315,31]
[336769696,1725127849429,-500.0,0.0003315,31]
[336769697,1725127849439,-500.0,0.0003315,31]
[336769698,1725127849449,-500.0,0.0003315,31]
[336769699,1725127849460,-500.0,0.0003315,31]
[336769700,1725127849469,-500.0,0.0003315,31]
[336769701,1725127849479,-843.19,0.0003315,31]
[336769702,1725127849489,-500.0,0.0003315,31]
[336769703,1725127849501,-500.0,0.0003315,31]
[336769704,1725127849511,-500.0,0.0003315,31]
[336769705,1725127849635,-500.0,0.0003315,31]
[336769706,1725127849648,-500.0,0.0003315,31]
[336769707,1725127849659,-551.87,0.0003315,31]
[336769708,1725127849668,-500.0,0.0003315,31]
[336769709,1725127849678,-500.0,0.0003315,31]
[336769710,1725127849687,-500.0,0.0003315,31]
[336769711,1725127849697,-1151.43,0.0003315,31]
[336769712,1725127849706,-500.0,0.0003315,31]
[336769713,1725127849715,-500.0,0.0003315,31]
[336769714,1725127849725,-500.0,0.0003315,31]
[336769715,1725127849735,-518.12,0.0003315,31]
[336769716,1725127849747,-500.0,0.0003315,31]
[336769717,1725127849760,-511.68,0.0003315,31]
[336769718,1725127849770,-500.0,0.0003315,31]
[336769719,1725127849779,-783.68,0.0003315,31]
[336769720,1725127849789,-500.0,0.0003315,31]
[336769721,1725127849798,-500.0,0.0003315,31]
[336769722,1725127849808,-1001.77,0.0003315,31]
[336769723,1725127849818,-500.0,0.0003315,31]
[336769724,1725127849828,-500.0,0.0003315,31]
[336769725,1725127849839,-500.0,0.0003315,31]
[336769726,1725127849849,-500.0,0.0003315,31]
[336769727,1725127849859,-892.31,0.0003315,31]
[336769728,1725127849871,-200.0,0.0003315,7]
[336769729,1725127849881,-500.0,0.0003315,31]
[336769730,1725127849893,-966.08,0.0003315,31]
[336769731,1725127849903,-500.0,0.0003315,31]
[336769732,1725127849914,-500.0,0.0003315,30]
[336769733,1725127849926,-840.02,0.0003315,14]
[336769734,1725127849936,-839.37,0.0003315,31]
[336769735,1725127849945,-500.0,0.0003315,31]
[336769736,1725127849955,-552.36,0.0003315,31]
[336769737,1725127849967,-501.88901207,0.0003315,31]
[336769738,1725127849978,-199.41491833,0.0003315,31]
[336769739,1725127849989,-151.0,0.0003315,14]
[336769740,1725127849999,-162.046306,0.0003315,14]
[336769741,1725127850009,-500.0,0.0003315,31]
[336769742,1725127850019,-151.0,0.0003315,14]
[336769743,1725127850029,-899.75,0.0003315,31]
[336769744,1725127850039,-151.0,0.0003315,14]
[336769745,1725127850049,-151.0,0.0003315,14]
[336769746,1725127850060,-2827.94,0.0003315,31]
[336769747,1725127850070,-1008.34,0.0003315,31]
[336769748,1725127850081,-500.0,0.0003315,31]
[336769749,1725127850092,-1241.47,0.0003315,31]
[336769750,1725127850103,-151.0,0.0003315,14]
[336769751,1725127850113,-500.0,0.0003315,31]
[336769752,1725127850124,-500.0,0.0003315,31]
[336769753,1725127850136,-500.0,0.0003315,31]
[336769754,1725127850147,-500.0,0.0003315,31]
[336769755,1725127850157,-501.71352139,0.0003315,31]
[336769756,1725127850167,-977.55,0.0003315,31]
[336769757,1725127850177,-784.29,0.0003315,7]
[336769758,1725127850186,-611.2,0.0003315,31]
[336769759,1725127850196,-883.2,0.0003315,31]
[336769760,1725127850206,-500.0,0.0003315,31]
[336769761,1725127850215,-500.0,0.0003315,31]
[336769762,1725127850226,-500.0,0.0003315,31]
[336769763,1725127850236,-151.0,0.0003315,14]
[336769764,1725127850245,-175.928226,0.0003315,14]
[336769765,1725127850255,-500.0,0.0003315,31]
[336769766,1725127850265,-500.0,0.0003315,31]
[336769767,1725127850274,-507.06096014,0.0003315,31]
[336769768,1725127850286,-500.0,0.0003315,31]
[336769769,1725127850296,-1100.86,0.0003315,31]
[336769770,1725127850305,-1056.58,0.0003315,31]
[336769771,1725127850314,-500.0,0.0003315,31]
[336769772,1725127850324,-500.0,0.0003315,31]
[336769773,1725127850334,-320.87089629,0.0003315,31]
[336769774,1725127850343,-500.0,0.0003315,31]
[336769775,1725127850353,-1050.3,0.0003315,31]
[336769776,1725127850368,-500.0,0.0003315,31]
[336769777,1725127850377,-966.44,0.0003315,31]
[336769778,1725127850387,-500.0,0.0003315,31]
[336769779,1725127850396,-500.0,0.0003315,31]
[336769780,1725127850406,-13837.8,0.0003315,31]
[336769781,1725127850416,-285.06028012,0.0003315,31]
[336769782,1725127850451,-751.68971988,0.0003315,31]
[336769783,1725127850461,-2454.22542729,0.0003315,31]
[336769784,1725127850473,-802.02187281,0.0003315,31]
[336769785,1725127850484,-262.4526999,0.0003315,31]
[336769786,1725127850494,-232.3717201,0.0003315,31]
[336769787,1725127851150,-267.6282799,0.0003315,31]
[336769788,1725127851161,-828.52,0.0003315,31]
[336769789,1725127851170,-500.0,0.0003315,31]
[336769790,1725127851179,-500.0,0.0003315,31]
[336769791,1725127851188,-689.86,0.0003315,31]
[336769792,1725127851198,-504.1281726,0.0003315,31]
[336769793,1725127851207,-500.0,0.0003315,31]